[Event "British Rapidplay Championship 2023"]
[Site "Mercure Bradford, Bankfield Hotel"]
[Date "2023.04.15"]
[Round "1.1"]
[White "Holliday, John K"]
[Black "Ghasi, Ameet K"]
[Result "0-1"]
[TimeControl "15 minutes plus 10 seconds per move"]
[WhiteElo "1832"]
[BlackElo "2631"]

1. e4 {[%clk 00:15:18]} {[%emt 00:00:02]} c5 {[%clk 00:14:40]} {[%emt
00:00:41]} 2. Nf3 {[%clk 00:15:22]} {[%emt 00:00:06]} e6 {[%clk 00:14:48]}
{[%emt 00:00:01]} 3. d4 {[%clk 00:15:30]} {[%emt 00:00:03]} cxd4 {[%clk
00:14:56]} {[%emt 00:00:01]} 4. Nxd4 {[%clk 00:15:38]} {[%emt 00:00:02]} Nf6
{[%clk 00:15:05]} {[%emt 00:00:02]} 5. Nc3 {[%clk 00:15:41]} {[%emt 00:00:07]}
Nc6 {[%clk 00:15:14]} {[%emt 00:00:02]} 6. Nxc6 {[%clk 00:15:30]} {[%emt
00:00:21]} bxc6 {[%clk 00:15:22]} {[%emt 00:00:01]} 7. Bd3 {[%emt 00:00:41]} d5
{[%clk 00:14:58]} 8. O-O {[%clk 00:14:48]} {[%emt 00:00:55]} Rb8 {[%clk
00:14:42]} {[%emt 00:00:26]} 9. Bg5 {[%clk 00:13:04]} {[%emt 00:01:54]} Rxb2
{[%clk 00:10:43]} {[%emt 00:04:09]} 10. e5 {[%clk 00:13:08]} {[%emt 00:00:06]}
Qa5 {[%clk 00:10:04]} {[%emt 00:00:49]} 11. exf6 {[%clk 00:12:12]} {[%emt
00:01:06]} Qxc3 {[%clk 00:10:02]} {[%emt 00:00:11]} 12. fxg7 {[%clk 00:12:12]}
{[%emt 00:00:11]} Qxg7 {[%clk 00:07:12]} {[%emt 00:03:00]} 13. Bf4 {[%clk
00:10:44]} {[%emt 00:01:37]} Rb4 {[%clk 00:06:46]} {[%emt 00:00:35]} 14. Bg3
{[%clk 00:10:51]} {[%emt 00:00:05]} Bc5 {[%clk 00:04:23]} {[%emt 00:02:33]} 15.
Qe2 {[%clk 00:10:24]} {[%emt 00:00:37]} h5 {[%clk 00:04:10]} {[%emt 00:00:23]}
16. Be5 {[%clk 00:09:36]} {[%emt 00:00:58]} f6 {[%clk 00:04:19]} {[%emt
00:00:01]} 17. Bc3 {[%clk 00:09:45]} {[%emt 00:00:02]} Rg4 {[%clk 00:04:27]}
{[%emt 00:00:01]} 18. g3 {[%clk 00:09:29]} {[%emt 00:00:26]} Rxg3+ {[%clk
00:04:19]} {[%emt 00:00:18]} 19. hxg3 {[%clk 00:09:27]} {[%emt 00:00:12]} Qxg3+
{[%clk 00:04:25]} {[%emt 00:00:03]} 20. Kh1 {[%clk 00:09:34]} {[%emt 00:00:04]}
Qh3+ {[%clk 00:04:34]} 0-1

[Event "British Rapidplay Championship 2023"]
[Site "Mercure Bradford, Bankfield Hotel"]
[Date "2023.04.15"]
[Round "1.2"]
[White "Gormally, Daniel W"]
[Black "Ganti, Shriaansh"]
[Result "1-0"]
[TimeControl "15 minutes plus 10 seconds per move"]
[WhiteElo "2570"]
[BlackElo "1831"]

1. d4 {[%clk 00:15:17]} {[%emt 00:00:03]} Nf6 {[%clk 00:15:18]} {[%emt
00:00:03]} 2. c4 {[%clk 00:15:26]} {[%emt 00:00:01]} e6 {[%clk 00:15:27]}
{[%emt 00:00:01]} 3. Nf3 {[%clk 00:15:34]} {[%emt 00:00:02]} Bb4+ {[%clk
00:15:35]} {[%emt 00:00:02]} 4. Nbd2 {[%clk 00:15:42]} d5 {[%clk 00:15:38]}
{[%emt 00:00:07]} 5. e3 {[%clk 00:15:45]} {[%emt 00:00:07]} O-O {[%clk
00:15:36]} {[%emt 00:00:13]} 6. Bd3 {[%clk 00:15:54]} b6 {[%clk 00:15:30]}
{[%emt 00:00:17]} 7. O-O {[%clk 00:15:51]} {[%emt 00:00:12]} Bb7 {[%clk
00:15:36]} {[%emt 00:00:05]} 8. a3 {[%clk 00:15:46]} {[%emt 00:00:14]} Bd6
{[%clk 00:15:18]} {[%emt 00:00:28]} 9. b4 {[%clk 00:15:14]} {[%emt 00:00:43]}
dxc4 {[%clk 00:15:05]} {[%emt 00:00:23]} 10. Nxc4 {[%clk 00:15:21]} {[%emt
00:00:03]} Nbd7 {[%clk 00:14:19]} {[%emt 00:00:56]} 11. Bb2 {[%clk 00:15:19]}
{[%emt 00:00:12]} Qe7 {[%clk 00:13:36]} {[%emt 00:00:52]} 12. Re1 {[%clk
00:14:58]} {[%emt 00:00:31]} c5 {[%clk 00:13:19]} {[%emt 00:00:27]} 13. Nxd6
{[%clk 00:13:42]} {[%emt 00:01:27]} Qxd6 {[%clk 00:13:21]} {[%emt 00:00:07]} 14.
dxc5 {[%clk 00:13:50]} {[%emt 00:00:02]} Qd5 {[%clk 00:12:34]} {[%emt
00:00:58]} 15. e4 {[%clk 00:12:21]} {[%emt 00:01:39]} Qh5 {[%clk 00:12:11]}
{[%emt 00:00:32]} 16. cxb6 {[%clk 00:12:02]} {[%emt 00:00:29]} Nxb6 {[%clk
00:11:52]} {[%emt 00:00:30]} 17. Ne5 {[%clk 00:10:22]} {[%emt 00:01:50]} Qxd1
{[%clk 00:09:59]} {[%emt 00:02:03]} 18. Raxd1 {[%clk 00:10:30]} {[%emt
00:00:02]} Rfd8 {[%clk 00:09:58]} {[%emt 00:00:11]} 19. f3 {[%clk 00:10:26]}
{[%emt 00:00:13]} Rac8 {[%clk 00:09:41]} {[%emt 00:00:27]} 20. Bb1 {[%clk
00:10:07]} {[%emt 00:00:29]} Ba6 {[%clk 00:09:09]} {[%emt 00:00:42]} 21. Nc6
{[%clk 00:09:35]} {[%emt 00:00:43]} Re8 {[%clk 00:08:54]} {[%emt 00:00:25]} 22.
Nxa7 {[%clk 00:09:01]} {[%emt 00:00:45]} Rc7 {[%emt 00:00:18]} 23. Bd4 {[%clk
00:09:09]} Rxa7 {[%clk 00:08:12]} {[%emt 00:00:44]} 24. Bxb6 {[%clk 00:09:17]}
{[%emt 00:00:03]} Rb7 {[%clk 00:08:16]} {[%emt 00:00:05]} 25. Rd6 {[%clk
00:09:16]} {[%emt 00:00:11]} h6 {[%clk 00:07:44]} {[%emt 00:00:43]} 26. a4
{[%clk 00:09:06]} {[%emt 00:00:20]} Nd7 {[%clk 00:06:55]} {[%emt 00:00:58]} 27.
Bf2 {[%clk 00:09:12]} {[%emt 00:00:04]} Bc4 {[%clk 00:06:40]} {[%emt 00:00:26]}
28. Rc1 {[%clk 00:09:08]} {[%emt 00:00:13]} Bb3 {[%clk 00:06:25]} {[%emt
00:00:25]} 29. a5 {[%clk 00:09:16]} {[%emt 00:00:03]} Ne5 {[%clk 00:06:27]}
{[%emt 00:00:08]} 30. Rb6 {[%clk 00:09:16]} {[%emt 00:00:09]} Rd7 {[%clk
00:05:55]} {[%emt 00:00:42]} 31. Bg3 {[%clk 00:07:54]} {[%emt 00:01:33]} Nc4
{[%clk 00:05:43]} {[%emt 00:00:22]} 32. Rc6 {[%clk 00:07:44]} {[%emt 00:00:20]}
Red8 {[%clk 00:05:10]} {[%emt 00:00:44]} 33. a6 {[%clk 00:07:50]} {[%emt
00:00:03]} Rd1+ {[%clk 00:05:03]} {[%emt 00:00:17]} 34. Rxd1 {[%clk 00:07:59]}
{[%emt 00:00:01]} Rxd1+ {[%clk 00:05:07]} {[%emt 00:00:05]} 35. Kf2 {[%clk
00:08:09]} Rxb1 {[%clk 00:05:03]} {[%emt 00:00:14]} 36. a7 {[%clk 00:07:57]}
{[%emt 00:00:22]} Rb2+ {[%clk 00:04:48]} {[%emt 00:00:26]} 37. Ke1 {[%clk
00:07:57]} {[%emt 00:00:10]} Rb1+ {[%clk 00:04:20]} {[%emt 00:00:37]} 38. Ke2
{[%clk 00:08:06]} {[%emt 00:00:02]} Rb2+ {[%clk 00:03:34]} {[%emt 00:00:56]} 39.
Kd3 {[%clk 00:08:12]} {[%emt 00:00:03]} Rd2+ {[%clk 00:02:25]} {[%emt
00:01:20]} 40. Kc3 {[%clk 00:08:21]} {[%emt 00:00:01]} Rd8 {[%clk 00:02:19]}
{[%emt 00:00:16]} 41. Kxb3 {[%clk 00:08:18]} {[%emt 00:00:12]} Nd2+ {[%clk
00:02:27]} {[%emt 00:00:02]} 42. Kc2 {[%emt 00:00:35]} Nc4 {[%emt 00:00:09]}
1-0

[Event "British Rapidplay Championship 2023"]
[Site "Mercure Bradford, Bankfield Hotel"]
[Date "2023.04.15"]
[Round "1.3"]
[White "Holi, Siefaldin A"]
[Black "Wells, Peter K"]
[Result "0-1"]
[TimeControl "15 minutes plus 10 seconds per move"]
[WhiteElo "1818"]
[BlackElo "2466"]

1. d4 {[%clk 00:15:10]} {[%emt 02:14:29]} Nf6 {[%clk 00:15:16]} {[%emt
00:00:17]} 2. Nc3 {[%clk 00:14:34]} {[%emt 00:00:47]} d5 {[%clk 00:15:19]}
{[%emt 00:00:07]} 3. f3 {[%clk 00:14:35]} {[%emt 00:00:09]} c5 {[%clk
00:14:47]} {[%emt 00:00:42]} 4. e4 {[%clk 00:14:29]} {[%emt 00:00:16]} cxd4
{[%clk 00:13:52]} {[%emt 00:01:06]} 5. Qxd4 {[%clk 00:14:33]} {[%emt 00:00:06]}
Nc6 {[%clk 00:13:49]} {[%emt 00:00:13]} 6. Bb5 {[%clk 00:14:40]} {[%emt
00:00:03]} e6 {[%clk 00:11:54]} {[%emt 00:02:04]} 7. Bxc6+ {[%clk 00:14:45]}
{[%emt 00:00:06]} bxc6 {[%clk 00:12:02]} {[%emt 00:00:02]} 8. e5 {[%clk
00:14:44]} {[%emt 00:00:11]} Nd7 {[%clk 00:11:56]} {[%emt 00:00:15]} 9. Nh3
{[%clk 00:14:34]} {[%emt 00:00:21]} Qb6 {[%clk 00:09:33]} {[%emt 00:02:32]} 10.
Qxb6 {[%clk 00:13:51]} {[%emt 00:00:54]} axb6 {[%clk 00:09:41]} {[%emt
00:00:02]} 11. f4 {[%clk 00:13:55]} {[%emt 00:00:05]} b5 {[%clk 00:09:44]}
{[%emt 00:00:08]} 12. O-O {[%clk 00:13:47]} {[%emt 00:00:17]} b4 {[%clk
00:09:21]} {[%emt 00:00:33]} 13. Ne2 {[%clk 00:13:46]} {[%emt 00:00:12]} Bc5+
{[%clk 00:07:42]} {[%emt 00:01:49]} 14. Kh1 {[%clk 00:13:48]} {[%emt 00:00:08]}
O-O {[%clk 00:06:53]} {[%emt 00:00:59]} 15. b3 {[%clk 00:13:39]} {[%emt
00:00:18]} f6 {[%clk 00:05:01]} {[%emt 00:02:03]} 16. Bb2 {[%clk 00:13:29]}
{[%emt 00:00:17]} fxe5 {[%clk 00:04:59]} {[%emt 00:00:15]} 17. Ng5 {[%clk
00:12:17]} {[%emt 00:01:21]} Ba6 {[%clk 00:04:11]} {[%emt 00:00:59]} 18. c4
{[%clk 00:11:11]} {[%emt 00:01:15]} bxc3 {[%clk 00:04:13]} {[%emt 00:00:08]} 19.
Nxc3 {[%clk 00:09:06]} {[%emt 00:02:15]} Bxf1 {[%clk 00:04:19]} {[%emt
00:00:04]} 20. Rxf1 {[%clk 00:09:06]} {[%emt 00:00:10]} Rxf4 {[%clk 00:04:22]}
{[%emt 00:00:08]} 21. Rxf4 {[%clk 00:09:06]} {[%emt 00:00:10]} exf4 {[%clk
00:04:30]} {[%emt 00:00:02]} 22. Nxe6 {[%clk 00:09:15]} {[%emt 00:00:01]} Re8
{[%clk 00:04:32]} {[%emt 00:00:07]} 23. h3 {[%clk 00:08:37]} {[%emt 00:00:48]}
Rxe6 {[%clk 00:04:39]} {[%emt 00:00:03]} 24. Na4 {[%clk 00:08:11]} {[%emt
00:00:36]} Re1+ {[%clk 00:04:47]} {[%emt 00:00:03]} 25. Kh2 {[%clk 00:08:13]}
{[%emt 00:00:05]} Bg1+ {[%clk 00:04:55]} {[%emt 00:00:05]} 0-1

[Event "British Rapidplay Championship 2023"]
[Site "Mercure Bradford, Bankfield Hotel"]
[Date "2023.04.15"]
[Round "1.4"]
[White "Arkell, Keith C"]
[Black "Mokhber-Garcia, Sebastian"]
[Result "1/2-1/2"]
[TimeControl "15 minutes plus 10 seconds per move"]
[WhiteElo "2447"]
[BlackElo "1815"]

1. d4 {[%clk 00:15:10]} {[%emt 00:00:09]} Nf6 {[%clk 00:15:17]} {[%emt
00:00:03]} 2. Nf3 {[%clk 00:15:18]} {[%emt 00:00:03]} e6 {[%clk 00:15:23]}
{[%emt 00:00:04]} 3. c4 {[%clk 00:15:26]} {[%emt 00:00:02]} d5 {[%clk
00:15:28]} {[%emt 00:00:04]} 4. cxd5 {[%clk 00:15:34]} {[%emt 00:00:03]} exd5
{[%clk 00:15:32]} {[%emt 00:00:05]} 5. Nc3 {[%clk 00:15:42]} {[%emt 00:00:03]}
Nc6 {[%clk 00:15:07]} {[%emt 00:00:35]} 6. Bg5 {[%clk 00:15:49]} {[%emt
00:00:02]} Be6 {[%clk 00:15:08]} {[%emt 00:00:09]} 7. e3 {[%clk 00:15:57]}
{[%emt 00:00:02]} a6 {[%clk 00:15:11]} {[%emt 00:00:08]} 8. a3 {[%clk
00:16:05]} {[%emt 00:00:02]} h6 {[%clk 00:15:16]} {[%emt 00:00:05]} 9. Bh4
{[%clk 00:16:13]} Be7 {[%clk 00:15:10]} {[%emt 00:00:16]} 10. Bd3 {[%clk
00:16:21]} {[%emt 00:00:02]} O-O {[%clk 00:15:12]} {[%emt 00:00:08]} 11. O-O
{[%clk 00:16:28]} {[%emt 00:00:04]} Nd7 {[%clk 00:15:16]} {[%emt 00:00:06]} 12.
Bg3 {[%clk 00:16:33]} {[%emt 00:00:05]} Re8 {[%clk 00:14:55]} {[%emt 00:00:31]}
13. Rc1 {[%clk 00:16:40]} {[%emt 00:00:03]} Nf8 {[%clk 00:14:57]} {[%emt
00:00:08]} 14. Qc2 {[%clk 00:16:46]} {[%emt 00:00:04]} Bd6 {[%clk 00:14:59]}
{[%emt 00:00:08]} 15. Bxd6 {[%clk 00:16:50]} {[%emt 00:00:05]} Qxd6 {[%clk
00:15:06]} {[%emt 00:00:03]} 16. Na4 {[%clk 00:16:56]} {[%emt 00:00:05]} Nd7
{[%clk 00:14:47]} {[%emt 00:00:28]} 17. Nc5 {[%clk 00:17:03]} {[%emt 00:00:04]}
Nxc5 {[%clk 00:14:52]} {[%emt 00:00:05]} 18. Qxc5 {[%clk 00:17:10]} {[%emt
00:00:02]} Qe7 {[%clk 00:14:22]} {[%emt 00:00:40]} 19. Qxe7 {[%clk 00:17:17]}
{[%emt 00:00:04]} Rxe7 {[%clk 00:14:28]} {[%emt 00:00:03]} 20. Rc3 {[%clk
00:17:18]} {[%emt 00:00:10]} Nb8 {[%clk 00:14:14]} {[%emt 00:00:24]} 21. h3
{[%clk 00:17:11]} {[%emt 00:00:16]} c6 {[%clk 00:14:21]} {[%emt 00:00:04]} 22.
b4 {[%clk 00:17:17]} {[%emt 00:00:04]} Nd7 {[%clk 00:14:14]} {[%emt 00:00:16]}
23. a4 {[%clk 00:17:26]} {[%emt 00:00:02]} Nb6 {[%clk 00:13:55]} {[%emt
00:00:29]} 24. Ra1 {[%clk 00:17:24]} {[%emt 00:00:11]} Nc4 {[%clk 00:12:30]}
{[%emt 00:01:36]} 25. Bxc4 {[%clk 00:17:31]} {[%emt 00:00:03]} dxc4 {[%clk
00:12:38]} {[%emt 00:00:02]} 26. a5 {[%clk 00:17:39]} {[%emt 00:00:02]} b5
{[%clk 00:11:23]} {[%emt 00:01:24]} 27. axb6 {[%clk 00:17:47]} {[%emt
00:00:03]} Rb7 {[%clk 00:11:31]} {[%emt 00:00:02]} 28. Ne5 {[%clk 00:17:32]}
{[%emt 00:00:25]} Rxb6 {[%clk 00:11:35]} {[%emt 00:00:05]} 29. Nxc4 {[%clk
00:16:56]} {[%emt 00:00:46]} Rxb4 {[%clk 00:10:52]} {[%emt 00:00:53]} 30. Na5
{[%clk 00:17:05]} {[%emt 00:00:02]} Rab8 {[%clk 00:10:32]} {[%emt 00:00:30]} 31.
Nxc6 {[%clk 00:17:03]} {[%emt 00:00:11]} Rb1+ {[%clk 00:10:38]} {[%emt
00:00:04]} 32. Rxb1 {[%clk 00:17:08]} {[%emt 00:00:06]} Rxb1+ {[%clk 00:10:46]}
{[%emt 00:00:02]} 33. Kh2 {[%clk 00:17:16]} {[%emt 00:00:02]} Rb2 {[%clk
00:10:40]} {[%emt 00:00:16]} 34. Kg3 {[%clk 00:17:24]} {[%emt 00:00:01]} h5
{[%clk 00:10:29]} {[%emt 00:00:22]} 35. h4 {[%clk 00:17:26]} {[%emt 00:00:07]}
f6 {[%clk 00:09:55]} {[%emt 00:00:45]} 36. d5 {[%clk 00:16:43]} {[%emt
00:00:53]} Bd7 {[%clk 00:09:42]} {[%emt 00:00:22]} 37. e4 {[%clk 00:16:20]}
{[%emt 00:00:33]} Re2 {[%clk 00:09:11]} {[%emt 00:00:41]} 38. f3 {[%clk
00:16:18]} {[%emt 00:00:13]} g5 {[%clk 00:08:16]} {[%emt 00:01:04]} 39. Ra3
{[%clk 00:15:53]} {[%emt 00:00:36]} gxh4+ {[%clk 00:08:10]} {[%emt 00:00:16]}
40. Kxh4 {[%clk 00:16:00]} {[%emt 00:00:02]} Rxg2 {[%clk 00:07:58]} {[%emt
00:00:21]} 41. Kxh5 {[%clk 00:15:35]} {[%emt 00:00:36]} Rg3 {[%clk 00:07:24]}
{[%emt 00:00:44]} 42. Ne7+ {[%clk 00:15:21]} {[%emt 00:00:25]} Kf7 {[%clk
00:07:01]} {[%emt 00:00:33]} 43. Nf5 {[%clk 00:15:26]} {[%emt 00:00:06]} Bxf5
{[%clk 00:06:44]} {[%emt 00:00:26]} 44. exf5 {[%clk 00:15:35]} {[%emt
00:00:01]} Rg5+ {[%clk 00:06:36]} {[%emt 00:00:18]} 45. Kh6 {[%clk 00:15:41]}
{[%emt 00:00:03]} Rxf5 {[%clk 00:06:41]} {[%emt 00:00:05]} 46. Rd3 {[%clk
00:14:15]} {[%emt 00:01:36]} Ke7 {[%clk 00:06:07]} {[%emt 00:00:45]} 47. Kg6
{[%clk 00:14:12]} {[%emt 00:00:12]} Rg5+ {[%clk 00:06:15]} {[%emt 00:00:03]} 48.
Kh6 {[%clk 00:14:22]} {[%emt 00:00:01]} Kd6 {[%clk 00:06:20]} {[%emt 00:00:04]}
49. f4 {[%clk 00:14:28]} {[%emt 00:00:04]} Rxd5 {[%clk 00:06:21]} {[%emt
00:00:09]} 50. Ra3 {[%clk 00:14:33]} {[%emt 00:00:05]} a5 {[%clk 00:06:27]}
{[%emt 00:00:04]} 51. Kg6 {[%clk 00:14:42]} f5 {[%clk 00:06:16]} {[%emt
00:00:21]} 52. Kf6 {[%clk 00:14:48]} {[%emt 00:00:05]} Kc6 {[%clk 00:06:14]}
{[%emt 00:00:12]} 53. Ke6 {[%clk 00:14:55]} {[%emt 00:00:03]} Rc5 {[%clk
00:06:18]} {[%emt 00:00:06]} 54. Ra1 {[%clk 00:14:44]} {[%emt 00:00:21]} Kb6
{[%clk 00:06:15]} {[%emt 00:00:13]} 55. Kd6 {[%clk 00:14:09]} {[%emt 00:00:44]}
Rb5 {[%clk 00:05:25]} {[%emt 00:01:00]} 56. Ra2 {[%clk 00:13:58]} {[%emt
00:00:22]} Ka6 {[%clk 00:05:14]} {[%emt 00:00:21]} 57. Ra3 {[%clk 00:12:54]}
{[%emt 00:01:14]} Kb6 {[%clk 00:05:02]} {[%emt 00:00:22]} 58. Ra1 {[%clk
00:12:39]} {[%emt 00:00:25]} Rb4 {[%clk 00:04:30]} {[%emt 00:00:42]} 59. Ke5
{[%clk 00:12:46]} {[%emt 00:00:04]} Rb5+ {[%clk 00:04:38]} {[%emt 00:00:02]} 60.
Kd6 {[%clk 00:12:44]} {[%emt 00:00:11]} Rc5 {[%clk 00:03:40]} {[%emt 00:01:07]}
61. Ra2 {[%clk 00:12:27]} {[%emt 00:00:28]} Rb5 {[%clk 00:03:30]} {[%emt
00:00:20]} 62. Ra1 {[%clk 00:12:21]} {[%emt 00:00:16]} Kb7 {[%clk 00:03:22]}
{[%emt 00:00:17]} 63. Ra2 {[%clk 00:11:50]} {[%emt 00:00:42]} Ka6 {[%clk
00:02:02]} {[%emt 00:01:30]} 64. Ke6 {[%clk 00:11:08]} {[%emt 00:00:52]} Rc5
{[%clk 00:01:21]} {[%emt 00:00:51]} 65. Kd6 {[%clk 00:10:57]} {[%emt 00:00:21]}
Rc8 {[%clk 00:01:13]} {[%emt 00:00:18]} 66. Ra1 {[%clk 00:09:35]} {[%emt
00:01:32]} Rc4 {[%clk 00:01:06]} {[%emt 00:00:16]} 67. Ke5 {[%clk 00:09:43]}
{[%emt 00:00:03]} Rc5+ {[%clk 00:01:14]} {[%emt 00:00:02]} 68. Kd6 {[%clk
00:09:33]} {[%emt 00:00:19]} Rb5 {[%clk 00:01:21]} {[%emt 00:00:03]} 69. Ra2
{[%clk 00:09:32]} {[%emt 00:00:11]} Rb8 {[%clk 00:01:21]} {[%emt 00:00:11]} 70.
Ke6 {[%clk 00:09:19]} {[%emt 00:00:24]} Rf8 {[%clk 00:01:28]} {[%emt 00:00:02]}
71. Rd2 {[%clk 00:08:20]} {[%emt 00:01:09]} Kb5 {[%clk 00:01:08]} {[%emt
00:00:30]} 72. Rd5+ {[%clk 00:08:20]} {[%emt 00:00:10]} Kb4 {[%clk 00:00:59]}
{[%emt 00:00:04]} 73. Ke7 {[%clk 00:07:30]} {[%emt 00:01:15]} 1/2-1/2

[Event "British Rapidplay Championship 2023"]
[Site "Mercure Bradford, Bankfield Hotel"]
[Date "2023.04.15"]
[Round "1.5"]
[White "Winter, Kevin"]
[Black "Ashton, Adam G"]
[Result "0-1"]
[TimeControl "15 minutes plus 10 seconds per move"]
[WhiteElo "1815"]
[BlackElo "2390"]

1. e4 {[%clk 00:15:17]} {[%emt 00:00:03]} e5 {[%clk 00:15:08]} {[%emt
00:00:12]} 2. Nf3 {[%clk 00:15:25]} {[%emt 00:00:02]} Nc6 {[%clk 00:15:17]}
{[%emt 00:00:02]} 3. Bc4 {[%clk 00:15:34]} {[%emt 00:00:01]} Nf6 {[%clk
00:15:23]} {[%emt 00:00:03]} 4. d3 {[%clk 00:15:30]} {[%emt 00:00:14]} Bc5
{[%clk 00:14:44]} {[%emt 00:00:49]} 5. c3 {[%clk 00:15:16]} {[%emt 00:00:25]}
O-O {[%clk 00:13:54]} {[%emt 00:00:59]} 6. O-O {[%clk 00:15:05]} {[%emt
00:00:21]} d5 {[%clk 00:13:43]} {[%emt 00:00:21]} 7. exd5 {[%clk 00:14:24]}
{[%emt 00:00:51]} Nxd5 {[%clk 00:13:50]} {[%emt 00:00:03]} 8. Re1 {[%clk
00:12:29]} {[%emt 00:02:05]} Bg4 {[%clk 00:13:20]} {[%emt 00:00:41]} 9. h3
{[%clk 00:10:49]} {[%emt 00:01:50]} Bh5 {[%clk 00:13:21]} {[%emt 00:00:09]} 10.
Nbd2 {[%clk 00:10:24]} {[%emt 00:00:34]} Nb6 {[%clk 00:13:11]} {[%emt
00:00:20]} 11. b4 {[%clk 00:09:31]} {[%emt 00:01:04]} Bd6 {[%clk 00:11:00]}
{[%emt 00:02:20]} 12. a4 {[%clk 00:09:09]} {[%emt 00:00:33]} a5 {[%clk
00:07:45]} {[%emt 00:03:26]} 13. b5 {[%clk 00:08:30]} {[%emt 00:00:48]} Ne7
{[%clk 00:07:52]} {[%emt 00:00:03]} 14. Ne4 {[%clk 00:07:45]} {[%emt 00:00:55]}
Ned5 {[%clk 00:05:55]} {[%emt 00:02:06]} 15. Bxd5 {[%clk 00:04:01]} {[%emt
00:03:55]} Nxd5 {[%clk 00:05:57]} {[%emt 00:00:07]} 16. Bb2 {[%clk 00:03:40]}
{[%emt 00:00:32]} Nf4 {[%clk 00:05:06]} {[%emt 00:01:01]} 17. d4 {[%clk
00:03:10]} {[%emt 00:00:40]} Re8 {[%clk 00:04:28]} {[%emt 00:00:48]} 18. d5
{[%clk 00:02:17]} {[%emt 00:01:04]} h6 {[%clk 00:04:04]} {[%emt 00:00:33]} 19.
c4 {[%clk 00:02:17]} {[%emt 00:00:10]} f5 {[%clk 00:03:51]} {[%emt 00:00:23]}
20. Ng3 {[%clk 00:01:28]} {[%emt 00:00:59]} Bxf3 {[%clk 00:03:41]} {[%emt
00:00:20]} 21. Qxf3 {[%clk 00:01:32]} {[%emt 00:00:06]} e4 {[%clk 00:02:45]}
{[%emt 00:01:06]} 22. Qb3 {[%clk 00:01:32]} {[%emt 00:00:10]} Qg5 {[%clk
00:02:44]} {[%emt 00:00:11]} 23. Bc1 {[%clk 00:01:23]} {[%emt 00:00:20]} h5
{[%clk 00:02:45]} {[%emt 00:00:08]} 24. Bxf4 {[%clk 00:01:04]} {[%emt
00:00:29]} Bxf4 {[%clk 00:02:42]} {[%emt 00:00:12]} 25. Ne2 {[%clk 00:00:57]}
{[%emt 00:00:18]} Be5 {[%clk 00:02:34]} {[%emt 00:00:17]} 26. Rad1 {[%clk
00:00:58]} {[%emt 00:00:10]} f4 {[%clk 00:02:33]} {[%emt 00:00:11]} 27. f3
{[%clk 00:00:36]} {[%emt 00:00:31]} e3 {[%clk 00:02:09]} {[%emt 00:00:34]} 28.
Qc2 {[%clk 00:00:27]} {[%emt 00:00:20]} Rf8 {[%clk 00:01:52]} {[%emt 00:00:27]}
29. Nd4 {[%clk 00:00:28]} {[%emt 00:00:08]} Bxd4 {[%clk 00:01:46]} {[%emt
00:00:17]} 30. Rxd4 {[%clk 00:00:37]} {[%emt 00:00:01]} Rae8 {[%clk 00:01:51]}
{[%emt 00:00:05]} 31. Re2 {[%clk 00:00:45]} {[%emt 00:00:02]} b6 {[%clk
00:01:47]} {[%emt 00:00:14]} 32. Qd3 {[%clk 00:00:30]} {[%emt 00:00:25]} Rf6
{[%clk 00:01:32]} {[%emt 00:00:25]} 33. Re4 {[%clk 00:00:27]} {[%emt 00:00:13]}
Re5 {[%clk 00:00:51]} {[%emt 00:00:51]} 34. Qd4 {[%clk 00:00:28]} {[%emt
00:00:10]} Rxe4 {[%clk 00:00:51]} {[%emt 00:00:09]} 35. Qxe4 {[%clk 00:00:36]}
{[%emt 00:00:02]} Qf5 {[%clk 00:00:26]} {[%emt 00:00:35]} 36. Qxf5 {[%clk
00:00:37]} {[%emt 00:00:09]} Rxf5 {[%clk 00:00:36]} {[%emt 00:00:01]} 37. Kf1
{[%clk 00:00:42]} {[%emt 00:00:05]} Kf7 {[%clk 00:00:43]} {[%emt 00:00:02]} 38.
Ke1 {[%clk 00:00:51]} Rg5 {[%clk 00:00:50]} {[%emt 00:00:04]} 39. Kd1 {[%clk
00:00:57]} {[%emt 00:00:04]} Ke7 {[%clk 00:00:58]} {[%emt 00:00:01]} 40. Kc2
{[%clk 00:01:06]} Kd6 {[%clk 00:01:07]} {[%emt 00:00:01]} 41. Kc3 {[%clk
00:01:15]} {[%emt 00:00:01]} Kc5 {[%clk 00:01:16]} {[%emt 00:00:01]} 42. Rb2
{[%clk 00:01:01]} {[%emt 00:00:24]} Re5 {[%clk 00:01:25]} {[%emt 00:00:01]} 43.
Re2 {[%clk 00:01:10]} g5 {[%clk 00:01:34]} {[%emt 00:00:02]} 44. Kd3 {[%clk
00:01:05]} {[%emt 00:00:15]} Re8 {[%clk 00:01:35]} {[%emt 00:00:09]} 45. Kc3
{[%clk 00:01:03]} {[%emt 00:00:11]} g4 {[%clk 00:01:38]} {[%emt 00:00:07]} 46.
hxg4 {[%clk 00:00:59]} {[%emt 00:00:14]} hxg4 {[%clk 00:01:47]} 47. fxg4 {[%clk
00:00:41]} {[%emt 00:00:28]} Re4 {[%clk 00:01:17]} {[%emt 00:00:40]} 48. g5
{[%clk 00:00:33]} {[%emt 00:00:18]} Rxc4+ {[%clk 00:01:24]} {[%emt 00:00:02]}
49. Kb3 {[%clk 00:00:30]} {[%emt 00:00:14]} Rd4 {[%clk 00:01:11]} {[%emt
00:00:24]} 50. Rc2+ {[%clk 00:00:32]} {[%emt 00:00:07]} Kxd5 {[%clk 00:01:03]}
{[%emt 00:00:18]} 51. Rxc7 {[%clk 00:00:31]} {[%emt 00:00:11]} e2 {[%clk
00:00:59]} {[%emt 00:00:14]} 52. Re7 {[%clk 00:00:33]} {[%emt 00:00:08]} Re4
{[%clk 00:01:04]} {[%emt 00:00:05]} 53. Rd7+ {[%clk 00:00:11]} {[%emt
00:00:32]} Ke5 {[%clk 00:15:10]} {[%emt 00:00:19]} 0-1